[Event "DLM Youth 2024"]
[Site "Tuebingen"]
[Date "2024.10.04"]
[Round "4"]
[White "Weber, Nikita"]
[Black "Bornholdt, Joa Max"]
[Result "1-0"]
[ECO "D02"]
[WhiteElo "2130"]
[BlackElo "2268"]
[Annotator "RC"]
[PlyCount "84"]
[EventDate "2024.10.03"]
[EventType "team-swiss"]
[EventRounds "7"]
[EventCountry "GER"]
[SourceTitle "playchess.com"]
[Source "ChessBase"]
[SourceQuality "1"]
[TimeControl "40/5400+30:1800+30"]

1. d4 {[%emt 0:00:06]} d5 {[%emt 0:00:28]} 2. Bf4 {[%emt 0:00:10]} Nf6 {[%emt 0:04:48]} 3. e3 {[%emt 0:00:20]} e6 {[%emt 0:01:07]} 4. Nf3 {[%emt 0:00:07]} c5 {[%emt 0:06:20]} 5. Be2 {[%emt 0:01:49]} Bd6 {[%emt 0:01:05]} 6. Ne5 {[%emt 0:01:03]} Nc6 {[%emt 0:02:52]} 7. c3 {[%emt 0:01:44]} Qc7 {[%emt 0:10:20]} 8. Nxc6 {[%emt 0:16:38]} bxc6 {[%emt 0:04:53]} 9. Bxd6 {[%emt 0:03:03]} Qxd6 {[%emt 0:00:01]} 10. Nd2 {[%emt 0:01:12]} Rb8 {[%emt 0:02:21]} 11. Qc2 {[%emt 0:00:55]} O-O {[%emt 0:00:27]} 12. O-O {[%emt 0:01:55]} e5 {[%emt 0:02:49]} 13. Nf3 {[%emt 0:05:55]} e4 {[%emt 0:12:41]} 14. dxc5 {[%emt 0:01:30]} Qxc5 {[%emt 0:01:26]} 15. Nd4 {[%emt 0:00:13]} Qb6 {[%emt 0:12:23]} 16. b4 {[%emt 0:02:48]} c5 {[%emt 0:09:03]} 17. bxc5 {[%emt 0:00:20]} Qxc5 {[%emt 0:00:03]} 18. c4 {[%emt 0:02:24]} dxc4 {[%emt 0:04:38]} 19. Qxc4 {[%emt 0:00:26]} Qg5 {[%emt 0:02:11]} 20. Kh1 {[%emt 0:03:31]} Bg4 {[%emt 0:03:18]} 21. Rab1 {[%emt 0:07:40]} Rbc8 {[%emt 0:03:46]} 22. Qa6 {[%emt 0:03:56]} Qh4 {[%emt 0:03:42]} 23. Qd6 {[%emt 0:03:40]} Bxe2 {[%emt 0:03:08]} 24. Nxe2 {[%emt 0:00:01]} Rfd8 {[%emt 0:00:26]} 25. Rbc1 {[%emt 0:06:05]} Rb8 {[%emt 0:05:17]} 26. Rb1 {[%emt 0:00:49]} Rbc8 {[%emt 0:00:02]} 27. Rbc1 {[%emt 0:00:11]} h5 {[%emt 0:02:12]} 28. Rxc8 {[%emt 0:00:05]} Rxc8 {[%emt 0:00:01]} 29. Nd4 {[%emt 0:00:31]} Ng4 {[%emt 0:00:41]} 30. Nf5 {[%emt 0:01:32]} Qxf2 {[%emt 0:00:35]} 31. Qa6 {[%emt 0:03:27]} Rc6 {[%emt 0:02:10]} 32. Ne7+ {[%emt 0:01:31]} Kh7 {[%emt 0:00:01]} 33. Nxc6 {[%emt 0:00:13]} Qh4 {[%emt 0:00:02]} 34. h3 {[%emt 0:00:53]} Nf2+ {[%emt 0:01:16]} 35. Kh2 {[%emt 0:04:35]} Ng4+ {[%emt 0:00:03]} 36. Kg1 {[%emt 0:01:43]} Qg3 {[%emt 0:00:56]} 37. hxg4 {[%emt 0:00:08]} Qxe3+ {[%emt 0:00:04]} 38. Kh1 {[%emt 0:07:49]} hxg4 {[%emt 0:00:02]} 39. Ne5 {[%emt 0:04:26]} Qg5 {[%emt 0:00:46]} 40. Qe2 {[%emt 0:03:56]} Qh6+ {[%emt 0:01:32]} 41. Kg1 {[%emt 0:30:02]} Qb6+ {[%emt 0:30:33]} 42. Qf2 {[%emt 0:01:16]} Qd8 {[%emt 0:00:33]} 1-0

[Event "DLM Youth 2024"]
[Site "Tuebingen"]
[Date "2024.10.04"]
[Round "4"]
[White "Braeutigam, Alexander"]
[Black "Groeschel, Karoline"]
[Result "1/2-1/2"]
[ECO "A22"]
[WhiteElo "2104"]
[BlackElo "1968"]
[Annotator "RC"]
[PlyCount "91"]
[EventDate "2024.10.03"]
[EventType "team-swiss"]
[EventRounds "7"]
[EventCountry "GER"]
[SourceTitle "playchess.com"]
[Source "ChessBase"]
[SourceQuality "1"]
[TimeControl "40/5400+30:1800+30"]

1. c4 {[%emt 0:00:01]} e5 {[%emt 0:00:21]} 2. Nc3 {[%emt 0:00:05]} Nf6 {[%emt 0:00:15]} 3. g3 {[%emt 0:00:05]} d5 {[%emt 0:00:13]} 4. cxd5 {[%emt 0:00:04]} Nxd5 {[%emt 0:00:06]} 5. Bg2 {[%emt 0:00:02]} Nf6 {[%emt 0:00:28]} 6. Nf3 {[%emt 0:00:25]} Nc6 {[%emt 0:00:05]} 7. d3 {[%emt 0:00:10]} h6 {[%emt 0:00:19]} 8. O-O {[%emt 0:00:25]} Bd6 {[%emt 0:00:46]} 9. a3 {[%emt 0:00:13]} a5 {[%emt 0:00:22]} 10. Bd2 {[%emt 0:00:29]} O-O {[%emt 0:01:03]} 11. Rc1 {[%emt 0:01:24]} Bf5 {[%emt 0:06:47]} 12. Nb5 {[%emt 0:10:29]} Qd7 {[%emt 0:02:04]} 13. b4 {[%emt 0:07:46]} axb4 {[%emt 0:09:54]} 14. Nxd6 {[%emt 0:01:48]} cxd6 {[%emt 0:01:05]} 15. axb4 {[%emt 0:00:28]} Bh3 {[%emt 0:02:26]} 16. Ra1 {[%emt 0:01:27]} Bxg2 {[%emt 0:07:27]} 17. Kxg2 {[%emt 0:00:04]} b5 {[%emt 0:07:52]} 18. Qc2 {[%emt 0:01:30]} Qb7 {[%emt 0:07:33]} 19. Kg1 {[%emt 0:02:42]} Rfc8 {[%emt 0:06:22]} 20. Rxa8 {[%emt 0:04:40]} Qxa8 {[%emt 0:01:37]} 21. Qb2 {[%emt 0:00:53]} Qb7 {[%emt 0:03:53]} 22. Ra1 {[%emt 0:09:46]} Ra8 {[%emt 0:01:43]} 23. e4 {[%emt 0:03:32]} Ne7 {[%emt 0:08:25]} 24. h3 {[%emt 0:04:32]} Rxa1+ {[%emt 0:06:33]} 25. Qxa1 {[%emt 0:00:01]} Nd7 {[%emt 0:00:27]} 26. Qa5 {[%emt 0:05:02]} Nc6 {[%emt 0:02:16]} 27. Qa2 {[%emt 0:00:23]} Ne7 {[%emt 0:00:42]} 28. Qa5 {[%emt 0:07:15]} Nc6 {[%emt 0:00:11]} 29. Qa2 {[%emt 0:00:41]} Ne7 {[%emt 0:00:21]} 30. Bc3 {[%emt 0:09:22]} d5 {[%emt 0:01:48]} 31. Nxe5 {[%emt 0:02:45]} Nxe5 {[%emt 0:00:54]} 32. Bxe5 {[%emt 0:00:21]} dxe4 {[%emt 0:00:50]} 33. Qe2 {[%emt 0:06:30]} exd3 {[%emt 0:00:52]} 34. Qxd3 {[%emt 0:00:05]} Qd5 {[%emt 0:01:44]} 35. Qc3 {[%emt 0:00:42]} Qd1+ {[%emt 0:02:30]} 36. Kg2 {[%emt 0:00:25]} Qd5+ {[%emt 0:00:17]} 37. Kh2 {[%emt 0:01:59]} f6 {[%emt 0:03:05]} 38. Bd4 {[%emt 0:03:28]} Nc6 {[%emt 0:01:03]} 39. Bc5 {[%emt 0:00:25]} Ne5 {[%emt 0:00:30]} 40. g4 {[%emt 0:03:51]} Kf7 {[%emt 0:13:13]} 41. Qe3 {[%emt 0:34:31]} Qd3 {[%emt 0:05:39]} 42. Kg3 {[%emt 0:00:00]} Qxe3+ {[%emt 0:03:26]} 43. fxe3 {[%emt 0:00:00]} Nd7 {[%emt 0:06:47]} 44. Bd4 {[%emt 0:00:00]} Ke6 {[%emt 0:01:18]} 45. e4 {[%emt 0:00:00]} Ne5 {[%emt 0:00:53]} 46. Bc3 {[%emt 0:00:00]} 1/2-1/2

[Event "DLM Youth 2024"]
[Site "Tuebingen"]
[Date "2024.10.04"]
[Round "4"]
[White "Shen, Tingrui"]
[Black "Noennig, Jakob"]
[Result "1-0"]
[ECO "E06"]
[WhiteElo "2102"]
[BlackElo "1986"]
[Annotator "RC"]
[PlyCount "51"]
[EventDate "2024.10.03"]
[EventType "team-swiss"]
[EventRounds "7"]
[EventCountry "GER"]
[SourceTitle "playchess.com"]
[Source "ChessBase"]
[SourceQuality "1"]
[TimeControl "40/5400+30:1800+30"]

1. Nf3 {[%emt 0:00:12]} d5 {[%emt 0:00:07]} 2. g3 {[%emt 0:00:42]} Nf6 {[%emt 0:00:44]} 3. Bg2 {[%emt 0:00:28]} e6 {[%emt 0:00:43]} 4. O-O {[%emt 0:00:18]} Be7 {[%emt 0:00:10]} 5. d4 {[%emt 0:00:54]} O-O {[%emt 0:00:24]} 6. c4 {[%emt 0:00:13]} a5 {[%emt 0:02:14]} 7. Nc3 {[%emt 0:01:05]} c6 {[%emt 0:05:49]} 8. Nd2 {[%emt 0:01:13]} b6 {[%emt 0:04:57]} 9. cxd5 {[%emt 0:03:06]} exd5 {[%emt 0:06:38]} 10. e4 {[%emt 0:01:26]} Bb7 {[%emt 0:02:54]} 11. e5 {[%emt 0:02:05]} Ne8 {[%emt 0:03:22]} 12. f4 {[%emt 0:06:28]} f5 {[%emt 0:06:14]} 13. exf6 {[%emt 0:06:21]} Bxf6 {[%emt 0:02:22]} 14. Nf3 {[%emt 0:01:59]} Nc7 {[%emt 0:13:31]} 15. Ne5 {[%emt 0:00:40]} Nba6 {[%emt 0:05:19]} 16. Be3 {[%emt 0:05:34]} Qd6 {[%emt 0:07:02]} 17. Qg4 {[%emt 0:04:35]} Rae8 {[%emt 0:04:11]} 18. Rac1 {[%emt 0:05:27]} Ne6 {[%emt 0:05:53]} 19. a3 {[%emt 0:06:28]} c5 {[%emt 0:05:35]} 20. Rfd1 {[%emt 0:02:19]} Nxd4 {[%emt 0:17:07]} 21. Bxd4 {[%emt 0:04:48]} cxd4 {[%emt 0:00:11]} 22. Nb5 {[%emt 0:00:50]} Qe7 {[%emt 0:01:14]} 23. Nd7 {[%emt 0:01:04]} Rf7 {[%emt 0:01:21]} 24. Nxf6+ {[%emt 0:01:31]} Rxf6 {[%emt 0:00:20]} 25. Nxd4 {[%emt 0:00:13]} Qe3+ {[%emt 0:00:12]} 26. Kh1 {[%emt 0:00:20]} 1-0

[Event "DLM Youth 2024"]
[Site "Tuebingen"]
[Date "2024.10.04"]
[Round "4"]
[White "Braeutigam, Katerina"]
[Black "Mueller, Riyanna"]
[Result "0-1"]
[ECO "D00"]
[WhiteElo "2099"]
[BlackElo "2014"]
[Annotator "RC"]
[PlyCount "80"]
[EventDate "2024.10.03"]
[EventType "team-swiss"]
[EventRounds "7"]
[EventCountry "GER"]
[SourceTitle "playchess.com"]
[Source "ChessBase"]
[SourceQuality "1"]
[TimeControl "40/5400+30:1800+30"]

1. d4 {[%emt 0:00:02]} d5 {[%emt 0:00:11]} 2. Bf4 {[%emt 0:00:04]} Nf6 {[%emt 0:00:35]} 3. e3 {[%emt 0:00:08]} c5 {[%emt 0:00:07]} 4. c3 {[%emt 0:00:08]} Nc6 {[%emt 0:00:36]} 5. Nd2 {[%emt 0:00:17]} g6 {[%emt 0:01:19]} 6. h3 {[%emt 0:05:57]} Bg7 {[%emt 0:01:07]} 7. Ngf3 {[%emt 0:03:32]} O-O {[%emt 0:01:33]} 8. dxc5 {[%emt 0:05:58]} Re8 {[%emt 0:04:21]} 9. Bb5 {[%emt 0:16:50]} Nd7 {[%emt 0:04:04]} 10. Nb3 {[%emt 0:07:01]} e5 {[%emt 0:08:21]} 11. Bg5 {[%emt 0:06:25]} Nf6 {[%emt 0:03:51]} 12. O-O {[%emt 0:08:00]} Bf5 {[%emt 0:09:15]} 13. Nbd2 {[%emt 0:05:10]} a5 {[%emt 0:20:23]} 14. a3 {[%emt 0:07:07]} h6 {[%emt 0:09:13]} 15. Bh4 {[%emt 0:05:21]} g5 {[%emt 0:09:48]} 16. Bg3 {[%emt 0:00:43]} Re6 {[%emt 0:03:52]} 17. Bxc6 {[%emt 0:08:03]} bxc6 {[%emt 0:00:39]} 18. Nxe5 {[%emt 0:02:35]} Qe7 {[%emt 0:01:32]} 19. Nef3 {[%emt 0:02:46]} Ne4 {[%emt 0:06:17]} 20. Nxe4 {[%emt 0:01:54]} Rxe4 {[%emt 0:02:03]} 21. Nd4 {[%emt 0:03:30]} Bxd4 {[%emt 0:01:19]} 22. cxd4 {[%emt 0:00:40]} Kh7 {[%emt 0:02:37]} 23. Qa4 {[%emt 0:06:07]} Qd7 {[%emt 0:01:17]} 24. b4 {[%emt 0:02:19]} h5 {[%emt 0:04:25]} 25. Rfe1 {[%emt 0:01:39]} h4 {[%emt 0:00:16]} 26. Be5 {[%emt 0:00:25]} g4 {[%emt 0:01:56]} 27. f3 {[%emt 0:00:39]} gxf3 {[%emt 0:00:08]} 28. gxf3 {[%emt 0:00:07]} Bxh3 {[%emt 0:00:27]} 29. Kf2 {[%emt 0:00:58]} Qf5 {[%emt 0:01:43]} 30. Ke2 {[%emt 0:00:27]} Rg8 {[%emt 0:01:20]} 31. Rg1 {[%emt 0:00:33]} Bg2 {[%emt 0:00:14]} 32. fxe4 {[%emt 0:00:32]} Qf3+ {[%emt 0:00:26]} 33. Kd2 {[%emt 0:00:22]} Qf2+ {[%emt 0:00:13]} 34. Kc3 {[%emt 0:00:16]} Qxe3+ {[%emt 0:00:49]} 35. Kb2 {[%emt 0:00:21]} Bxe4 {[%emt 0:00:05]} 36. Qd1 {[%emt 0:00:53]} Qf2+ {[%emt 0:00:26]} 37. Kc1 {[%emt 0:00:35]} Rxg1 {[%emt 0:00:08]} 38. bxa5 {[%emt 0:00:35]} Rxd1+ {[%emt 0:00:12]} 39. Kxd1 {[%emt 0:00:07]} Qf1+ {[%emt 0:00:05]} 40. Kd2 {[%emt 0:00:25]} Qxa1 {[%emt 0:00:08]} 0-1

[Event "DLM Youth 2024"]
[Site "Tuebingen"]
[Date "2024.10.04"]
[Round "4"]
[White "Foksha, Mischa"]
[Black "Chassard, Cedric"]
[Result "1/2-1/2"]
[ECO "C60"]
[WhiteElo "2078"]
[BlackElo "2289"]
[Annotator "RC"]
[PlyCount "48"]
[EventDate "2024.10.03"]
[EventType "team-swiss"]
[EventRounds "7"]
[EventCountry "GER"]
[SourceTitle "playchess.com"]
[Source "ChessBase"]
[SourceQuality "1"]
[TimeControl "40/5400+30:1800+30"]

1. e4 {[%emt 0:00:02]} e5 {[%emt 0:00:19]} 2. Nf3 {[%emt 0:00:06]} Nc6 {[%emt 0:00:06]} 3. Bb5 {[%emt 0:00:05]} a6 {[%emt 0:00:05]} 4. Ba4 {[%emt 0:00:03]} Nge7 {[%emt 0:02:26]} 5. O-O {[%emt 0:05:02]} g6 {[%emt 0:07:49]} 6. c3 {[%emt 0:03:33]} Bg7 {[%emt 0:01:11]} 7. d4 {[%emt 0:00:14]} b5 {[%emt 0:01:50]} 8. Bb3 {[%emt 0:02:28]} exd4 {[%emt 0:01:01]} 9. cxd4 {[%emt 0:00:18]} O-O {[%emt 0:00:50]} 10. Nc3 {[%emt 0:04:05]} Na5 {[%emt 0:08:49]} 11. Bc2 {[%emt 0:01:30]} Bb7 {[%emt 0:00:19]} 12. Bg5 {[%emt 0:03:56]} h6 {[%emt 0:04:18]} 13. Bh4 {[%emt 0:00:42]} Nc4 {[%emt 0:03:11]} 14. b3 {[%emt 0:04:34]} Na3 {[%emt 0:06:35]} 15. Bd3 {[%emt 0:12:25]} Re8 {[%emt 0:10:10]} 16. e5 {[%emt 0:12:18]} d6 {[%emt 0:04:08]} 17. Ne4 {[%emt 0:04:36]} dxe5 {[%emt 0:01:16]} 18. dxe5 {[%emt 0:08:18]} Qd7 {[%emt 0:06:24]} 19. Nf6+ {[%emt 0:06:42]} Bxf6 {[%emt 0:00:05]} 20. Bxf6 {[%emt 0:00:05]} Qg4 {[%emt 0:04:05]} 21. h3 {[%emt 0:03:04]} Qf4 {[%emt 0:04:38]} 22. Qc1 {[%emt 0:00:50]} Qxc1 {[%emt 0:00:33]} 23. Raxc1 {[%emt 0:00:06]} Nd5 {[%emt 0:06:56]} 24. Be4 {[%emt 0:01:28]} Ra7 {[%emt 0:00:57]} 1/2-1/2

[Event "DLM Youth 2024"]
[Site "Tuebingen"]
[Date "2024.10.04"]
[Round "4"]
[White "Wunderlich, Elias"]
[Black "Haubold, Christian"]
[Result "1/2-1/2"]
[ECO "C88"]
[WhiteElo "2073"]
[BlackElo "2084"]
[Annotator "RC"]
[PlyCount "49"]
[EventDate "2024.10.03"]
[EventType "team-swiss"]
[EventRounds "7"]
[EventCountry "GER"]
[SourceTitle "playchess.com"]
[Source "ChessBase"]
[SourceQuality "1"]
[TimeControl "40/5400+30:1800+30"]

1. e4 {[%emt 0:00:01]} e5 {[%emt 0:00:05]} 2. Nf3 {[%emt 0:00:03]} Nc6 {[%emt 0:00:05]} 3. Bb5 {[%emt 0:00:03]} a6 {[%emt 0:00:04]} 4. Ba4 {[%emt 0:00:05]} Nf6 {[%emt 0:00:13]} 5. O-O {[%emt 0:00:07]} Be7 {[%emt 0:00:16]} 6. d3 {[%emt 0:00:08]} b5 {[%emt 0:00:35]} 7. Bb3 {[%emt 0:00:02]} d6 {[%emt 0:00:52]} 8. a4 {[%emt 0:00:06]} Bb7 {[%emt 0:01:00]} 9. c3 {[%emt 0:00:14]} O-O {[%emt 0:03:05]} 10. Re1 {[%emt 0:00:17]} Na5 {[%emt 0:00:51]} 11. Bc2 {[%emt 0:01:18]} c5 {[%emt 0:00:19]} 12. d4 {[%emt 0:00:19]} Qc7 {[%emt 0:00:29]} 13. Nbd2 {[%emt 0:00:54]} Rfe8 {[%emt 0:06:42]} 14. Nf1 {[%emt 0:03:06]} Bf8 {[%emt 0:04:12]} 15. Bg5 {[%emt 0:01:25]} Nd7 {[%emt 0:01:38]} 16. Ng3 {[%emt 0:02:02]} g6 {[%emt 0:05:43]} 17. Qe2 {[%emt 0:19:46]} f6 {[%emt 0:08:17]} 18. Be3 {[%emt 0:00:36]} c4 {[%emt 0:01:21]} 19. d5 {[%emt 0:01:34]} Nc5 {[%emt 0:02:11]} 20. Nd2 {[%emt 0:00:26]} Bg7 {[%emt 0:10:47]} 21. Ra3 {[%emt 0:18:33]} Kh8 {[%emt 0:13:24]} 22. Rea1 {[%emt 0:02:18]} Kg8 {[%emt 0:04:37]} 23. Qd1 {[%emt 0:02:19]} Red8 {[%emt 0:07:20]} 24. R1a2 {[%emt 0:03:55]} Ra7 {[%emt 0:10:02]} 25. Qa1 {[%emt 0:13:01]} 1/2-1/2

[Event "DLM Youth 2024"]
[Site "Tuebingen"]
[Date "2024.10.04"]
[Round "4"]
[White "Bardorz, Jana"]
[Black "Shevchenko, Igor"]
[Result "1-0"]
[ECO "B13"]
[WhiteElo "2069"]
[BlackElo "1856"]
[Annotator "RC"]
[PlyCount "44"]
[EventDate "2024.10.03"]
[EventType "team-swiss"]
[EventRounds "7"]
[EventCountry "GER"]
[SourceTitle "playchess.com"]
[Source "ChessBase"]
[SourceQuality "1"]
[TimeControl "40/5400+30:1800+30"]

1. e4 {[%emt 0:00:04]} c6 {[%emt 0:00:04]} 2. d4 {[%emt 0:00:10]} d5 {[%emt 0:00:08]} 3. exd5 {[%emt 0:00:11]} cxd5 {[%emt 0:00:07]} 4. Bd3 {[%emt 0:00:06]} Nc6 {[%emt 0:00:11]} 5. c3 {[%emt 0:00:08]} Qc7 {[%emt 0:00:11]} 6. Ne2 {[%emt 0:01:09]} Bg4 {[%emt 0:00:11]} 7. O-O {[%emt 0:00:45]} e6 {[%emt 0:01:54]} 8. Qe1 {[%emt 0:00:59]} Nf6 {[%emt 0:03:48]} 9. f3 {[%emt 0:06:19]} Bh5 {[%emt 0:00:49]} 10. Bf4 {[%emt 0:00:13]} Bd6 {[%emt 0:00:39]} 11. Qh4 {[%emt 0:07:07]} Rg8 {[%emt 0:14:49]} 12. Nd2 {[%emt 0:12:43]} O-O-O {[%emt 0:22:16]} 13. a4 {[%emt 0:12:45]} Bxf4 {[%emt 0:16:41]} 14. Qxf4 {[%emt 0:00:31]} Qxf4 {[%emt 0:03:50]} 15. Nxf4 {[%emt 0:00:06]} Bg6 {[%emt 0:00:07]} 16. Bxg6 {[%emt 0:01:42]} hxg6 {[%emt 0:00:14]} 17. Nb3 {[%emt 0:01:26]} Rh8 {[%emt 0:07:16]} 18. Rfe1 {[%emt 0:05:18]} g5 {[%emt 0:02:57]} 19. Nd3 {[%emt 0:02:43]} Rh5 {[%emt 0:04:55]} 20. h3 {[%emt 0:02:27]} Nd7 {[%emt 0:03:14]} 21. Re2 {[%emt 0:06:48]} Nb6 {[%emt 0:01:22]} 22. Nd2 {[%emt 0:01:43]} Re8 {[%emt 0:03:16]} 1-0

[Event "DLM Youth 2024"]
[Site "Tuebingen"]
[Date "2024.10.04"]
[Round "4"]
[White "Liebold, Aaron"]
[Black "Semling, Julius"]
[Result "1-0"]
[ECO "B53"]
[WhiteElo "2058"]
[BlackElo "2233"]
[Annotator "RC"]
[PlyCount "88"]
[EventDate "2024.10.03"]
[EventType "team-swiss"]
[EventRounds "7"]
[EventCountry "GER"]
[SourceTitle "playchess.com"]
[Source "ChessBase"]
[SourceQuality "1"]
[TimeControl "40/5400+30:1800+30"]

1. e4 {[%emt 0:00:02]} c5 {[%emt 0:00:07]} 2. Nf3 {[%emt 0:00:04]} d6 {[%emt 0:00:09]} 3. d4 {[%emt 0:00:05]} cxd4 {[%emt 0:00:10]} 4. Qxd4 {[%emt 0:00:04]} Nc6 {[%emt 0:00:19]} 5. Bb5 {[%emt 0:00:04]} Bd7 {[%emt 0:00:17]} 6. Qd3 {[%emt 0:00:33]} Nf6 {[%emt 0:02:10]} 7. c4 {[%emt 0:00:36]} g6 {[%emt 0:01:50]} 8. Nc3 {[%emt 0:00:26]} Bg7 {[%emt 0:00:51]} 9. O-O {[%emt 0:00:07]} O-O {[%emt 0:01:03]} 10. h3 {[%emt 0:01:10]} a6 {[%emt 0:02:24]} 11. Bxc6 {[%emt 0:01:27]} Bxc6 {[%emt 0:00:52]} 12. Nd4 {[%emt 0:00:07]} Be8 {[%emt 0:03:45]} 13. Be3 {[%emt 0:02:21]} Rc8 {[%emt 0:02:31]} 14. Rac1 {[%emt 0:01:36]} Nd7 {[%emt 0:02:08]} 15. b3 {[%emt 0:02:05]} Nc5 {[%emt 0:01:51]} 16. Qd2 {[%emt 0:01:32]} Bd7 {[%emt 0:04:21]} 17. Rfd1 {[%emt 0:04:09]} Re8 {[%emt 0:02:38]} 18. f3 {[%emt 0:06:10]} Rb8 {[%emt 0:09:25]} 19. b4 {[%emt 0:22:53]} Na4 {[%emt 0:05:33]} 20. Nd5 {[%emt 0:00:45]} e6 {[%emt 0:06:01]} 21. Nc3 {[%emt 0:00:33]} Nxc3 {[%emt 0:05:37]} 22. Rxc3 {[%emt 0:06:01]} d5 {[%emt 0:08:04]} 23. exd5 {[%emt 0:01:56]} exd5 {[%emt 0:00:09]} 24. c5 {[%emt 0:09:29]} Ba4 {[%emt 0:02:35]} 25. Rdc1 {[%emt 0:02:29]} Qh4 {[%emt 0:02:53]} 26. Rd3 {[%emt 0:02:09]} Bd7 {[%emt 0:06:23]} 27. Ne2 {[%emt 0:08:21]} h6 {[%emt 0:10:56]} 28. Bf2 {[%emt 0:05:04]} Qe7 {[%emt 0:06:45]} 29. Nf4 {[%emt 0:05:16]} Bb5 {[%emt 0:00:00]} 30. Nxd5 {[%emt 0:06:29]} Qe2 {[%emt 0:00:08]} 31. Nf4 {[%emt 0:01:27]} Qxd2 {[%emt 0:01:42]} 32. Rxd2 {[%emt 0:00:03]} Rbd8 {[%emt 0:02:12]} 33. Rdd1 {[%emt 0:03:41]} Ba4 {[%emt 0:01:57]} 34. Rxd8 {[%emt 0:01:39]} Rxd8 {[%emt 0:00:01]} 35. Be3 {[%emt 0:00:16]} Bb2 {[%emt 0:01:59]} 36. Rc4 {[%emt 0:04:05]} Bb5 {[%emt 0:01:04]} 37. Re4 {[%emt 0:01:00]} Bc6 {[%emt 0:01:47]} 38. Rc4 {[%emt 0:00:28]} Bb5 {[%emt 0:01:54]} 39. Re4 {[%emt 0:01:26]} Kf8 {[%emt 0:02:38]} 40. Kf2 {[%emt 0:01:46]} g5 {[%emt 0:02:15]} 41. Ne2 {[%emt 0:11:03]} Bd3 {[%emt 0:02:40]} 42. Rd4 {[%emt 0:03:48]} Bxd4 {[%emt 0:00:19]} 43. Nxd4 {[%emt 0:00:01]} Rd5 {[%emt 0:02:36]} 44. g4 {[%emt 0:02:52]} Ke7 {[%emt 0:01:25]} 1-0

[Event "DLM Youth 2024"]
[Site "Tuebingen"]
[Date "2024.10.04"]
[Round "4"]
[White "Windmueller, Simon"]
[Black "Karle, Sam"]
[Result "1/2-1/2"]
[ECO "A05"]
[WhiteElo "2052"]
[BlackElo "2124"]
[Annotator "NA RC"]
[PlyCount "45"]
[EventDate "2024.10.03"]
[EventType "team-swiss"]
[EventRounds "7"]
[EventCountry "GER"]
[SourceTitle "playchess.com"]
[Source "ChessBase"]
[SourceQuality "1"]
[TimeControl "40/5400+30:1800+30"]

1. Nf3 {[%emt 0:00:09]} Nf6 {[%emt 0:00:09]} 2. g3 {[%emt 0:00:09]} b5 {[%emt 0:00:09]} 3. Bg2 {[%emt 0:00:11]} Bb7 {[%emt 0:00:07]} 4. O-O {[%emt 0:00:48]} e6 {[%emt 0:00:17]} 5. d3 {[%emt 0:00:27]} c5 {[%emt 0:00:13]} 6. e4 {[%emt 0:00:23]} d6 {[%emt 0:00:11]} 7. Nbd2 {[%emt 0:01:43]} Be7 {[%emt 0:00:25]} 8. Re1 {[%emt 0:00:13]} Nbd7 {[%emt 0:00:22]} 9. Nf1 {[%emt 0:01:59]} a5 {[%emt 0:02:47]} 10. a4 {[%emt 0:04:49]} b4 {[%emt 0:02:01]} 11. Nh4 {[%emt 0:01:34]} Qc7 {[%emt 0:05:51]} 12. b3 {[%emt 0:00:19]} d5 {[%emt 0:03:37]} 13. exd5 {[%emt 0:06:26]} Nxd5 {[%emt 0:09:04]} 14. Bb2 {[%emt 0:00:26]} Bf6 {[%emt 0:00:00]} 15. Bxf6 {[%emt 0:00:34]} N7xf6 {[%emt 0:00:00]} 16. Ne3 {[%emt 0:00:30]} Nxe3 {[%emt 0:00:00]} 17. Rxe3 {[%emt 0:00:30]} Bxg2 {[%emt 0:00:00]} 18. Nxg2 {[%emt 0:00:30]} O-O {[%emt 0:00:00]} 19. Qf3 {[%emt 0:00:30]} Rad8 {[%emt 0:00:00]} 20. Ree1 {[%emt 0:00:30]} Nd5 {[%emt 0:00:00]} 21. Ne3 {[%emt 0:00:30]} Nxe3 {[%emt 0:00:00]} 22. Rxe3 {[%emt 0:00:30]} Rd5 {[%emt 0:00:00]} 23. Rae1 {[%emt 0:00:30]} 1/2-1/2

[Event "DLM Youth 2024"]
[Site "Tuebingen"]
[Date "2024.10.04"]
[Round "4"]
[White "Voigt, Anastasia"]
[Black "Bauer, Laura Sophie"]
[Result "1/2-1/2"]
[ECO "C54"]
[WhiteElo "2037"]
[BlackElo "1943"]
[Annotator "RC"]
[PlyCount "51"]
[EventDate "2024.10.03"]
[EventType "team-swiss"]
[EventRounds "7"]
[EventCountry "GER"]
[SourceTitle "playchess.com"]
[Source "ChessBase"]
[SourceQuality "1"]
[TimeControl "40/5400+30:1800+30"]

1. e4 {[%emt 0:00:02]} e5 {[%emt 0:00:06]} 2. Nf3 {[%emt 0:00:03]} Nc6 {[%emt 0:00:06]} 3. Bc4 {[%emt 0:00:04]} Bc5 {[%emt 0:00:06]} 4. c3 {[%emt 0:00:03]} Nf6 {[%emt 0:00:06]} 5. d3 {[%emt 0:00:04]} d6 {[%emt 0:00:06]} 6. O-O {[%emt 0:00:13]} a6 {[%emt 0:00:10]} 7. Nbd2 {[%emt 0:00:35]} Ba7 {[%emt 0:00:38]} 8. Bb3 {[%emt 0:00:19]} h6 {[%emt 0:00:53]} 9. Nc4 {[%emt 0:03:50]} O-O {[%emt 0:07:12]} 10. Ne3 {[%emt 0:00:10]} Ne7 {[%emt 0:02:38]} 11. Nh4 {[%emt 0:07:47]} d5 {[%emt 0:10:11]} 12. Qf3 {[%emt 0:04:16]} dxe4 {[%emt 0:05:17]} 13. dxe4 {[%emt 0:00:16]} Be6 {[%emt 0:07:35]} 14. Nef5 {[%emt 0:04:20]} Nxf5 {[%emt 0:06:21]} 15. Nxf5 {[%emt 0:00:30]} Bxf5 {[%emt 0:02:06]} 16. Qxf5 {[%emt 0:00:30]} Qc8 {[%emt 0:04:08]} 17. Qxe5 {[%emt 0:20:22]} Re8 {[%emt 0:05:08]} 18. Qg3 {[%emt 0:04:09]} Rxe4 {[%emt 0:20:09]} 19. Bxh6 {[%emt 0:15:09]} Qg4 {[%emt 0:02:21]} 20. Qxc7 {[%emt 0:09:42]} Qd7 {[%emt 0:03:20]} 21. Qxd7 {[%emt 0:02:33]} Nxd7 {[%emt 0:00:07]} 22. Be3 {[%emt 0:01:50]} Bxe3 {[%emt 0:00:38]} 23. fxe3 {[%emt 0:00:04]} Nf6 {[%emt 0:00:10]} 24. Rf3 {[%emt 0:01:04]} Rd8 {[%emt 0:00:50]} 25. Raf1 {[%emt 0:01:08]} Rd2 {[%emt 0:00:48]} 26. Rg3 {[%emt 0:01:19]} 1/2-1/2